[Event "*** Titled Tuesday Blitz"]
[Site "Chess.com"]
[Date "2020.04.28"]
[Round "6"]
[White "dzhumagaliev"]
[Black "thedjoker98"]
[Result "1-0"]
[WhiteElo "2735"]
[BlackElo "2508"]
[TimeControl "180+1"]
[EndTime "11:08:22 PDT"]
[Termination "dzhumagaliev won by checkmate"]

1. Nf3 {[%clk 0:03:00.9]} 1... d5 {[%clk 0:02:59.6]} 2. h4 {[%clk 0:03:01.8]}
2... c5 {[%clk 0:02:57.9]} 3. h5 {[%clk 0:02:59.5]} 3... Nc6 {[%clk 0:02:56.5]}
4. c3 {[%clk 0:02:58.7]} 4... h6 {[%clk 0:02:54.2]} 5. d4 {[%clk 0:02:58.9]}
5... cxd4 {[%clk 0:02:54.1]} 6. cxd4 {[%clk 0:02:59]} 6... Nf6 {[%clk
0:02:53.2]} 7. Nc3 {[%clk 0:02:59.4]} 7... Bf5 {[%clk 0:02:53.3]} 8. Bf4 {[%clk
0:02:58.3]} 8... e6 {[%clk 0:02:51.3]} 9. Qb3 {[%clk 0:02:58.1]} 9... Qb6 {[%clk
0:02:31.6]} 10. Qxb6 {[%clk 0:02:53]} 10... axb6 {[%clk 0:02:32.5]} 11. a3
{[%clk 0:02:46.2]} 11... Be7 {[%clk 0:02:23.9]} 12. e3 {[%clk 0:02:39]} 12...
O-O {[%clk 0:02:23.6]} 13. Rc1 {[%clk 0:02:34.2]} 13... Rfc8 {[%clk 0:02:23.2]}
14. Be2 {[%clk 0:02:26.8]} 14... Kf8 {[%clk 0:02:21.1]} 15. Nd2 {[%clk
0:02:24.6]} 15... Ke8 {[%clk 0:02:20.7]} 16. f3 {[%clk 0:02:23.8]} 16... Kd7
{[%clk 0:02:19.4]} 17. g4 {[%clk 0:02:23.4]} 17... Bh7 {[%clk 0:02:19.8]} 18.
Kf2 {[%clk 0:02:22.5]} 18... Ne8 {[%clk 0:02:17.6]} 19. Rhg1 {[%clk 0:02:07.3]}
19... f6 {[%clk 0:02:12]} 20. Bg3 {[%clk 0:02:03.9]} 20... Nd6 {[%clk
0:02:09.8]} 21. Nb5 {[%clk 0:02:00.9]} 21... Na5 {[%clk 0:02:00.8]} 22. Nxd6
{[%clk 0:01:59]} 22... Bxd6 {[%clk 0:02:01.7]} 23. Bb5+ {[%clk 0:01:58.9]} 23...
Ke7 {[%clk 0:02:01.2]} 24. Bxd6+ {[%clk 0:01:53.4]} 24... Kxd6 {[%clk
0:02:02.1]} 25. f4 {[%clk 0:01:53.4]} 25... Rxc1 {[%clk 0:01:57.1]} 26. Rxc1
{[%clk 0:01:52.5]} 26... Nc6 {[%clk 0:01:58]} 27. Kg3 {[%clk 0:01:43.1]} 27...
Rf8 {[%clk 0:01:57.5]} 28. Nf3 {[%clk 0:01:35.2]} 28... Be4 {[%clk 0:01:55]} 29.
Nd2 {[%clk 0:01:35]} 29... Bh7 {[%clk 0:01:54.4]} 30. Be2 {[%clk 0:01:33.7]}
30... Bg8 {[%clk 0:01:41.9]} 31. Bf3 {[%clk 0:01:33]} 31... e5 {[%clk
0:01:40.3]} 32. Nb3 {[%clk 0:01:31.5]} 32... Bh7 {[%clk 0:01:21.9]} 33. dxe5+
{[%clk 0:01:27.3]} 33... fxe5 {[%clk 0:01:22.8]} 34. f5 {[%clk 0:01:27.1]} 34...
Bg8 {[%clk 0:01:16.7]} 35. Rd1 {[%clk 0:01:25.5]} 35... d4 {[%clk 0:01:12.5]}
36. Nc1 {[%clk 0:01:18.7]} 36... Bd5 {[%clk 0:01:10.8]} 37. Ne2 {[%clk
0:01:12.2]} 37... Bxf3 {[%clk 0:01:03.2]} 38. Kxf3 {[%clk 0:01:13.1]} 38... Kd5
{[%clk 0:01:04.1]} 39. Nc3+ {[%clk 0:01:06.7]} 39... Kc4 {[%clk 0:01:02.8]} 40.
Ne4 {[%clk 0:01:06.9]} 40... Kb3 {[%clk 0:01:01.3]} 41. Rd2 {[%clk 0:01:05.7]}
41... Rd8 {[%clk 0:00:59.1]} 42. exd4 {[%clk 0:00:46.9]} 42... Rxd4 {[%clk
0:00:53.6]} 43. Re2 {[%clk 0:00:39.7]} 43... Rd3+ {[%clk 0:00:51]} 44. Kg2
{[%clk 0:00:37.4]} 44... Nd4 {[%clk 0:00:50.6]} 45. Rf2 {[%clk 0:00:37.4]} 45...
Re3 {[%clk 0:00:39.4]} 46. Nd2+ {[%clk 0:00:36.6]} 46... Ka2 {[%clk 0:00:29]}
47. Nc4 {[%clk 0:00:31.9]} 47... Re2 {[%clk 0:00:28.8]} 48. Rxe2 {[%clk
0:00:26.5]} 48... Nxe2 {[%clk 0:00:29.7]} 49. Kf3 {[%clk 0:00:26.2]} 49... Nd4+
{[%clk 0:00:27.2]} 50. Ke4 {[%clk 0:00:26.2]} 50... b5 {[%clk 0:00:27.5]} 51.
Nxe5 {[%clk 0:00:26.3]} 51... Ne2 {[%clk 0:00:26.4]} 52. Ke3 {[%clk 0:00:20.8]}
52... Nc1 {[%clk 0:00:24.6]} 53. g5 {[%clk 0:00:19.3]} 53... hxg5 {[%clk
0:00:23.6]} 54. f6 {[%clk 0:00:19.5]} 54... gxf6 {[%clk 0:00:23.8]} 55. h6
{[%clk 0:00:19.9]} 55... fxe5 {[%clk 0:00:24.3]} 56. h7 {[%clk 0:00:20.4]} 56...
Kxb2 {[%clk 0:00:25.2]} 57. h8=Q {[%clk 0:00:20.7]} 57... Kxa3 {[%clk
0:00:26.1]} 58. Qxe5 {[%clk 0:00:19.8]} 58... b4 {[%clk 0:00:25.5]} 59. Qa1+
{[%clk 0:00:17.9]} 59... Na2 {[%clk 0:00:25.7]} 60. Kd3 {[%clk 0:00:08.4]} 60...
b5 {[%clk 0:00:20.1]} 61. Kc2 {[%clk 0:00:06]} 61... b3+ {[%clk 0:00:20.1]} 62.
Kb1 {[%clk 0:00:06.3]} 62... g4 {[%clk 0:00:18.7]} 63. Qd4 {[%clk 0:00:05.9]}
63... g3 {[%clk 0:00:16.2]} 64. Qc5+ {[%clk 0:00:06]} 64... Ka4 {[%clk
0:00:15.4]} 65. Kb2 {[%clk 0:00:05.7]} 65... b4 {[%clk 0:00:14.2]} 66. Qb6
{[%clk 0:00:05.3]} 66... g2 {[%clk 0:00:11.5]} 67. Qa6# {[%clk 0:00:05.4]} 1-0

[Event "*** Titled Tuesday Blitz"]
[Site "Chess.com"]
[Date "2020.04.28"]
[Round "6"]
[White "DDTerziev04"]
[Black "Ranindu2003"]
[Result "1-0"]
[WhiteElo "2348"]
[BlackElo "2531"]
[TimeControl "180+1"]
[EndTime "11:08:23 PDT"]
[Termination "DDTerziev04 won by checkmate"]

1. e4 {[%clk 0:02:57.5]} 1... c5 {[%clk 0:02:59.3]} 2. Nf3 {[%clk 0:02:56.7]}
2... Nc6 {[%clk 0:02:59.5]} 3. Bb5 {[%clk 0:02:56.1]} 3... e6 {[%clk 0:02:59.4]}
4. O-O {[%clk 0:02:54.1]} 4... Nge7 {[%clk 0:02:58.2]} 5. Re1 {[%clk 0:02:50.2]}
5... Qb6 {[%clk 0:02:58.1]} 6. Bf1 {[%clk 0:02:49.7]} 6... d5 {[%clk 0:02:53.6]}
7. exd5 {[%clk 0:02:48.8]} 7... Nxd5 {[%clk 0:02:54.5]} 8. Nc3 {[%clk 0:02:43]}
8... Nxc3 {[%clk 0:02:47.1]} 9. bxc3 {[%clk 0:02:36.9]} 9... Be7 {[%clk
0:02:47.1]} 10. d4 {[%clk 0:02:36.1]} 10... O-O {[%clk 0:02:40.5]} 11. Bd3
{[%clk 0:02:31.6]} 11... Rd8 {[%clk 0:02:30.4]} 12. Be3 {[%clk 0:02:30.3]} 12...
cxd4 {[%clk 0:02:23.7]} 13. cxd4 {[%clk 0:02:28.6]} 13... Qa5 {[%clk 0:02:17.6]}
14. Bd2 {[%clk 0:02:20.9]} 14... Qh5 {[%clk 0:02:03.9]} 15. c3 {[%clk
0:02:15.5]} 15... Bf6 {[%clk 0:01:58.7]} 16. Qc2 {[%clk 0:02:08.3]} 16... Bd7
{[%clk 0:01:48.6]} 17. Rab1 {[%clk 0:02:04.6]} 17... Rac8 {[%clk 0:01:33]} 18.
Rb5 {[%clk 0:01:59.3]} 18... Nxd4 {[%clk 0:00:46.8]} 19. Rxh5 {[%clk 0:01:57.2]}
19... Nxc2 {[%clk 0:00:46.5]} 20. Bxh7+ {[%clk 0:01:54.1]} 20... Kf8 {[%clk
0:00:46.1]} 21. Bxc2 {[%clk 0:01:53.8]} 21... g6 {[%clk 0:00:46.6]} 22. Ra5
{[%clk 0:01:36.2]} 22... Bc6 {[%clk 0:00:39]} 23. Bh6+ {[%clk 0:01:17.5]} 23...
Kg8 {[%clk 0:00:36.9]} 24. Nd4 {[%clk 0:01:00.7]} 24... Bd5 {[%clk 0:00:24.8]}
25. Bb3 {[%clk 0:00:33.4]} 25... Bxb3 {[%clk 0:00:21.4]} 26. axb3 {[%clk
0:00:32.9]} 26... Rxc3 {[%clk 0:00:21.3]} 27. Nf3 {[%clk 0:00:26.3]} 27... Rxb3
{[%clk 0:00:21.2]} 28. Rxa7 {[%clk 0:00:23.3]} 28... b5 {[%clk 0:00:20.5]} 29.
Bg5 {[%clk 0:00:19]} 29... Bxg5 {[%clk 0:00:19.9]} 30. Nxg5 {[%clk 0:00:19.9]}
30... Rf8 {[%clk 0:00:16.9]} 31. h4 {[%clk 0:00:17.1]} 31... b4 {[%clk
0:00:16.6]} 32. Ne4 {[%clk 0:00:16.8]} 32... Kg7 {[%clk 0:00:15]} 33. Nc5 {[%clk
0:00:13.6]} 33... Rb2 {[%clk 0:00:14.7]} 34. Nxe6+ {[%clk 0:00:13.5]} 34... Kg8
{[%clk 0:00:15.2]} 35. Nxf8 {[%clk 0:00:13.9]} 35... Kxf8 {[%clk 0:00:16.1]} 36.
Rb7 {[%clk 0:00:14.1]} 36... b3 {[%clk 0:00:14.9]} 37. Re3 {[%clk 0:00:14]}
37... Rb1+ {[%clk 0:00:14.8]} 38. Kh2 {[%clk 0:00:14.2]} 38... Rf1 {[%clk
0:00:15.4]} 39. Rexb3 {[%clk 0:00:12.7]} 39... Rxf2 {[%clk 0:00:15.8]} 40. Rb8+
{[%clk 0:00:13.1]} 40... Kg7 {[%clk 0:00:16.4]} 41. R3b6 {[%clk 0:00:13.9]}
41... Rf4 {[%clk 0:00:16.9]} 42. g3 {[%clk 0:00:11.9]} 42... Rc4 {[%clk
0:00:17.3]} 43. Kg2 {[%clk 0:00:11.9]} 43... Rc2+ {[%clk 0:00:17.8]} 44. Kf3
{[%clk 0:00:11.6]} 44... Rc3+ {[%clk 0:00:18]} 45. Kg4 {[%clk 0:00:11.8]} 45...
Rc4+ {[%clk 0:00:18.5]} 46. Kh3 {[%clk 0:00:12]} 46... Rc3 {[%clk 0:00:19]} 47.
Rb3 {[%clk 0:00:12]} 47... Rc1 {[%clk 0:00:19.2]} 48. Rf3 {[%clk 0:00:12.1]}
48... Rh1+ {[%clk 0:00:19]} 49. Kg2 {[%clk 0:00:12.4]} 49... Rc1 {[%clk
0:00:19.3]} 50. Rb7 {[%clk 0:00:12.5]} 50... g5 {[%clk 0:00:17.4]} 51. Rbxf7+
{[%clk 0:00:11.8]} 51... Kh6 {[%clk 0:00:16.6]} 52. hxg5+ {[%clk 0:00:11.6]}
52... Kxg5 {[%clk 0:00:16.7]} 53. R7f5+ {[%clk 0:00:11.5]} 53... Kg6 {[%clk
0:00:16.9]} 54. Kh3 {[%clk 0:00:11.2]} 54... Rh1+ {[%clk 0:00:16.3]} 55. Kg4
{[%clk 0:00:11.2]} 55... Rc1 {[%clk 0:00:17.2]} 56. Rf6+ {[%clk 0:00:10.9]}
56... Kg7 {[%clk 0:00:17.8]} 57. Ra6 {[%clk 0:00:10.6]} 57... Rc4+ {[%clk
0:00:18]} 58. Rf4 {[%clk 0:00:10.9]} 58... Rc3 {[%clk 0:00:18.1]} 59. Rb4 {[%clk
0:00:07.4]} 59... Rc7 {[%clk 0:00:18.2]} 60. Rbb6 {[%clk 0:00:07.2]} 60... Rc5
{[%clk 0:00:18]} 61. Rb7+ {[%clk 0:00:06.4]} 61... Kg8 {[%clk 0:00:18]} 62. Ra8+
{[%clk 0:00:06.4]} 62... Rc8 {[%clk 0:00:16.6]} 63. Rxc8# {[%clk 0:00:06.5]} 1-0

[Event "*** Titled Tuesday Blitz"]
[Site "Chess.com"]
[Date "2020.04.28"]
[Round "6"]
[White "A-Fier"]
[Black "WoolworthsManly"]
[Result "1-0"]
[WhiteElo "2809"]
[BlackElo "2655"]
[TimeControl "180+1"]
[EndTime "11:08:24 PDT"]
[Termination "A-Fier won on time"]

1. e4 {[%clk 0:03:00.9]} 1... e5 {[%clk 0:02:59.6]} 2. Nf3 {[%clk 0:03:00.9]}
2... Nc6 {[%clk 0:02:59.2]} 3. Bb5 {[%clk 0:03:01.5]} 3... a6 {[%clk 0:02:54.9]}
4. Ba4 {[%clk 0:03:02]} 4... Nf6 {[%clk 0:02:54.7]} 5. O-O {[%clk 0:03:02.6]}
5... Be7 {[%clk 0:02:53.4]} 6. Re1 {[%clk 0:03:03.2]} 6... b5 {[%clk 0:02:50.8]}
7. Bb3 {[%clk 0:03:03.6]} 7... d6 {[%clk 0:02:51.4]} 8. a4 {[%clk 0:03:03.1]}
8... Bd7 {[%clk 0:02:48.6]} 9. c3 {[%clk 0:03:03]} 9... O-O {[%clk 0:02:48.1]}
10. d4 {[%clk 0:03:03.6]} 10... h6 {[%clk 0:02:41.3]} 11. Nbd2 {[%clk
0:03:03.7]} 11... Re8 {[%clk 0:02:41.2]} 12. Nf1 {[%clk 0:03:04.2]} 12... Bf8
{[%clk 0:02:41.3]} 13. Ng3 {[%clk 0:03:04.7]} 13... Na5 {[%clk 0:02:39.7]} 14.
Bc2 {[%clk 0:03:03.4]} 14... c5 {[%clk 0:02:39.6]} 15. d5 {[%clk 0:03:03.5]}
15... c4 {[%clk 0:02:39.5]} 16. h3 {[%clk 0:02:50]} 16... Nb7 {[%clk 0:02:39.1]}
17. Be3 {[%clk 0:02:48.6]} 17... g6 {[%clk 0:02:34.4]} 18. Qd2 {[%clk 0:02:48]}
18... Kh7 {[%clk 0:02:34.2]} 19. b3 {[%clk 0:02:48.1]} 19... cxb3 {[%clk
0:02:32.9]} 20. Bxb3 {[%clk 0:02:49]} 20... Qc7 {[%clk 0:02:32.9]} 21. Rec1
{[%clk 0:02:46.4]} 21... Nc5 {[%clk 0:02:32.8]} 22. Bxc5 {[%clk 0:02:38.4]}
22... Qxc5 {[%clk 0:02:30.1]} 23. c4 {[%clk 0:02:38.9]} 23... bxa4 {[%clk
0:02:15.2]} 24. Bxa4 {[%clk 0:02:37.5]} 24... a5 {[%clk 0:02:13.9]} 25. Ne1
{[%clk 0:02:35.5]} 25... h5 {[%clk 0:02:07.5]} 26. Bxd7 {[%clk 0:02:13.6]} 26...
Nxd7 {[%clk 0:02:07.2]} 27. Nd3 {[%clk 0:02:14]} 27... Qd4 {[%clk 0:02:02.6]}
28. Qc3 {[%clk 0:02:11.9]} 28... h4 {[%clk 0:01:56]} 29. Nf1 {[%clk 0:01:46.8]}
29... Qxe4 {[%clk 0:01:52.5]} 30. Nd2 {[%clk 0:01:46.2]} 30... Qf5 {[%clk
0:01:49.8]} 31. f3 {[%clk 0:01:33.2]} 31... a4 {[%clk 0:01:43.4]} 32. Ne4 {[%clk
0:01:30]} 32... Nf6 {[%clk 0:01:37.2]} 33. Ndf2 {[%clk 0:01:29.9]} 33... Nxe4
{[%clk 0:01:35.3]} 34. Nxe4 {[%clk 0:01:30.8]} 34... Qf4 {[%clk 0:01:31]} 35. c5
{[%clk 0:01:29.2]} 35... f5 {[%clk 0:01:30.6]} 36. Nf6+ {[%clk 0:01:29]} 36...
Kh6 {[%clk 0:01:21.7]} 37. Nxe8 {[%clk 0:01:29.9]} 37... Rxe8 {[%clk 0:01:05.5]}
38. c6 {[%clk 0:01:24.3]} 38... e4 {[%clk 0:01:00]} 39. Qh8+ {[%clk 0:01:23.4]}
39... Kg5 {[%clk 0:00:59.5]} 40. fxe4 {[%clk 0:01:19.5]} 40... Rxe4 {[%clk
0:00:53.8]} 41. Qxf8 {[%clk 0:00:52]} 41... Re2 {[%clk 0:00:53.6]} 42. Kh1
{[%clk 0:00:52.1]} 42... Qe4 {[%clk 0:00:26.9]} 43. Rg1 {[%clk 0:00:37.1]} 43...
Re3 {[%clk 0:00:27]} 44. Qxd6 {[%clk 0:00:19.3]} 44... Rxh3+ {[%clk 0:00:26.4]}
45. Qh2 {[%clk 0:00:19.9]} 45... Rxh2+ {[%clk 0:00:26.6]} 46. Kxh2 {[%clk
0:00:20.8]} 46... Qxd5 {[%clk 0:00:26.1]} 47. Rgc1 {[%clk 0:00:20.9]} 47... Qe5+
{[%clk 0:00:22.9]} 48. Kg1 {[%clk 0:00:21.2]} 48... h3 {[%clk 0:00:23.1]} 49.
Ra3 {[%clk 0:00:14.8]} 49... hxg2 {[%clk 0:00:14.4]} 50. c7 {[%clk 0:00:14.5]}
50... Qd4+ {[%clk 0:00:13]} 51. Kh2 {[%clk 0:00:14.9]} 51... Qf4+ {[%clk
0:00:12.6]} 52. Rg3+ {[%clk 0:00:14.8]} 52... Kh4 {[%clk 0:00:12.7]} 53. Rc3
{[%clk 0:00:12.7]} 53... g1=Q+ {[%clk 0:00:11.3]} 54. Kxg1 {[%clk 0:00:13.1]}
54... Qd4+ {[%clk 0:00:10.2]} 55. Rge3 {[%clk 0:00:13.3]} 55... Qd1+ {[%clk
0:00:10.1]} 56. Kf2 {[%clk 0:00:13.7]} 56... Qd2+ {[%clk 0:00:10.2]} 57. Kf3
{[%clk 0:00:13.5]} 57... Qd5+ {[%clk 0:00:10.4]} 58. Ke2 {[%clk 0:00:13.8]}
58... Qg2+ {[%clk 0:00:10.1]} 59. Kd1 {[%clk 0:00:14.3]} 59... Qd5+ {[%clk
0:00:10]} 60. Kc1 {[%clk 0:00:14.4]} 60... Qh1+ {[%clk 0:00:08.1]} 61. Kb2
{[%clk 0:00:14.9]} 61... Qb7+ {[%clk 0:00:08.1]} 62. Ka3 {[%clk 0:00:14.6]}
62... Qc8 {[%clk 0:00:09]} 63. Rc4+ {[%clk 0:00:10.4]} 63... Kg5 {[%clk
0:00:08.1]} 64. Re5 {[%clk 0:00:10.6]} 64... Kf6 {[%clk 0:00:08.2]} 65. Rb5
{[%clk 0:00:10.1]} 65... Qf8+ {[%clk 0:00:07.8]} 66. Kxa4 {[%clk 0:00:09.8]}
66... Qa8+ {[%clk 0:00:07.5]} 67. Kb4 {[%clk 0:00:09.7]} 67... Qf8+ {[%clk
0:00:07.4]} 68. Rcc5 {[%clk 0:00:10.2]} 1-0

[Event "*** Titled Tuesday Blitz"]
[Site "Chess.com"]
[Date "2020.04.28"]
[Round "6"]
[White "johnathan113"]
[Black "Grandelicious"]
[Result "1-0"]
[WhiteElo "2651"]
[BlackElo "2759"]
[TimeControl "180+1"]
[EndTime "11:08:24 PDT"]
[Termination "johnathan113 won by resignation"]

1. d4 {[%clk 0:03:00.9]} 1... Nf6 {[%clk 0:02:59.8]} 2. Nc3 {[%clk 0:03:00.9]}
2... d5 {[%clk 0:02:58.1]} 3. Bf4 {[%clk 0:03:01.1]} 3... a6 {[%clk 0:02:56.1]}
4. e3 {[%clk 0:03:01.1]} 4... e6 {[%clk 0:02:56.5]} 5. Nf3 {[%clk 0:03:01.5]}
5... c5 {[%clk 0:02:53.2]} 6. a3 {[%clk 0:03:00.9]} 6... Nbd7 {[%clk 0:02:51.3]}
7. Ne5 {[%clk 0:02:52.4]} 7... Nxe5 {[%clk 0:02:49.7]} 8. Bxe5 {[%clk
0:02:53.3]} 8... Bd6 {[%clk 0:02:46.1]} 9. Bxd6 {[%clk 0:02:28.3]} 9... Qxd6
{[%clk 0:02:44.3]} 10. dxc5 {[%clk 0:02:29.2]} 10... Qxc5 {[%clk 0:02:44.5]} 11.
Qd4 {[%clk 0:02:30.1]} 11... Qc7 {[%clk 0:02:23.9]} 12. O-O-O {[%clk 0:02:29]}
12... O-O {[%clk 0:02:20.4]} 13. f4 {[%clk 0:02:01.5]} 13... b5 {[%clk 0:02:14]}
14. g4 {[%clk 0:01:57.8]} 14... Rb8 {[%clk 0:02:04.5]} 15. g5 {[%clk 0:01:56.5]}
15... Nd7 {[%clk 0:02:02.2]} 16. h4 {[%clk 0:01:34.2]} 16... Qa5 {[%clk
0:01:30.1]} 17. Na2 {[%clk 0:01:20.8]} 17... Bb7 {[%clk 0:01:27.7]} 18. h5
{[%clk 0:01:20.3]} 18... Qb6 {[%clk 0:01:26.9]} 19. Bh3 {[%clk 0:01:07.4]} 19...
Rfe8 {[%clk 0:01:09.7]} 20. Nc3 {[%clk 0:00:53.1]} 20... Rbc8 {[%clk 0:01:04.8]}
21. g6 {[%clk 0:00:41.6]} 21... fxg6 {[%clk 0:01:03.6]} 22. hxg6 {[%clk
0:00:41.2]} 22... h6 {[%clk 0:01:03.5]} 23. f5 {[%clk 0:00:27.7]} 23... Qxd4
{[%clk 0:00:40.1]} 24. exd4 {[%clk 0:00:28.6]} 24... exf5 {[%clk 0:00:37.6]} 25.
Bxf5 {[%clk 0:00:29.5]} 25... Rcd8 {[%clk 0:00:38]} 26. Rde1 {[%clk 0:00:29.2]}
26... Nf6 {[%clk 0:00:37.7]} 27. Be6+ {[%clk 0:00:22.7]} 27... Kf8 {[%clk
0:00:35.3]} 28. Bf7 {[%clk 0:00:23]} 28... Rxe1+ {[%clk 0:00:31.2]} 29. Rxe1
{[%clk 0:00:23.9]} 29... Bc8 {[%clk 0:00:29.7]} 30. Re5 {[%clk 0:00:21.1]} 30...
Bb7 {[%clk 0:00:21.1]} 31. Ne2 {[%clk 0:00:21.3]} 31... Rd7 {[%clk 0:00:15.8]}
32. Nf4 {[%clk 0:00:19.3]} 32... Rxf7 {[%clk 0:00:15.1]} 33. Ne6+ {[%clk
0:00:19.5]} 33... Ke7 {[%clk 0:00:15.2]} 34. Nc5+ {[%clk 0:00:18.5]} 34... Kf8
{[%clk 0:00:14.6]} 35. gxf7 {[%clk 0:00:18.6]} 35... Bc8 {[%clk 0:00:15.1]} 36.
a4 {[%clk 0:00:10]} 36... bxa4 {[%clk 0:00:13.9]} 37. Nxa4 {[%clk 0:00:09.3]}
37... h5 {[%clk 0:00:14]} 38. Nb6 {[%clk 0:00:07.9]} 38... Bg4 {[%clk
0:00:12.6]} 39. Nxd5 {[%clk 0:00:06]} 39... Nxd5 {[%clk 0:00:13.5]} 40. Rxd5
{[%clk 0:00:06.9]} 40... h4 {[%clk 0:00:14.4]} 41. Rg5 {[%clk 0:00:06.4]} 41...
Bf3 {[%clk 0:00:14.9]} 42. Rf5 {[%clk 0:00:05]} 42... Bg2 {[%clk 0:00:13.3]} 43.
Rh5 {[%clk 0:00:02.2]} 43... h3 {[%clk 0:00:12.2]} 44. Kd2 {[%clk 0:00:02.3]}
44... Kxf7 {[%clk 0:00:11.5]} 45. Ke3 {[%clk 0:00:02.9]} 45... g6 {[%clk
0:00:11.4]} 46. Rh7+ {[%clk 0:00:02.5]} 46... Kg8 {[%clk 0:00:11.3]} 47. Rh4
{[%clk 0:00:03.1]} 47... g5 {[%clk 0:00:09.7]} 48. Rh5 {[%clk 0:00:03.5]} 48...
Kf7 {[%clk 0:00:10.2]} 49. Kf2 {[%clk 0:00:03.4]} 49... Kg6 {[%clk 0:00:08.6]}
50. Rh8 {[%clk 0:00:03.4]} 50... Kf5 {[%clk 0:00:08]} 51. Kg3 {[%clk 0:00:02.9]}
51... Ke4 {[%clk 0:00:08.7]} 52. Rd8 {[%clk 0:00:03.1]} 52... g4 {[%clk
0:00:06.8]} 53. d5 {[%clk 0:00:03.5]} 53... Ke5 {[%clk 0:00:06.8]} 54. d6 {[%clk
0:00:03.9]} 54... Ke6 {[%clk 0:00:07.3]} 55. c4 {[%clk 0:00:04.5]} 55... Bc6
{[%clk 0:00:05.3]} 56. c5 {[%clk 0:00:04.2]} 56... Kd5 {[%clk 0:00:06]} 57. Rc8
{[%clk 0:00:03.5]} 57... Bb5 {[%clk 0:00:04.2]} 58. Rc7 {[%clk 0:00:03.2]} 58...
a5 {[%clk 0:00:03.6]} 59. d7 {[%clk 0:00:03.5]} 59... Bxd7 {[%clk 0:00:03.6]}
60. Rxd7+ {[%clk 0:00:04.4]} 60... Kxc5 {[%clk 0:00:04.5]} 61. Rg7 {[%clk
0:00:04.9]} 61... Kb4 {[%clk 0:00:05.4]} 62. Rxg4+ {[%clk 0:00:05.3]} 62... Kb3
{[%clk 0:00:05.8]} 63. Kxh3 {[%clk 0:00:06.2]} 63... Kxb2 {[%clk 0:00:05.7]} 64.
Ra4 {[%clk 0:00:06.6]} 64... Kb3 {[%clk 0:00:04.8]} 65. Rxa5 {[%clk 0:00:07.5]}
1-0

[Event "*** Titled Tuesday Blitz"]
[Site "Chess.com"]
[Date "2020.04.28"]
[Round "6"]
[White "Nafania1"]
[Black "blobica"]
[Result "1-0"]
[WhiteElo "2392"]
[BlackElo "2543"]
[TimeControl "180+1"]
[EndTime "11:08:24 PDT"]
[Termination "Nafania1 won on time"]

1. e4 {[%clk 0:03:00.9]} 1... c6 {[%clk 0:02:59.1]} 2. d4 {[%clk 0:03:00]} 2...
d5 {[%clk 0:02:59.6]} 3. exd5 {[%clk 0:02:56.8]} 3... cxd5 {[%clk 0:02:59]} 4.
Bd3 {[%clk 0:02:56.9]} 4... Nc6 {[%clk 0:02:58.2]} 5. c3 {[%clk 0:02:57.2]} 5...
Nf6 {[%clk 0:02:58.5]} 6. h3 {[%clk 0:02:57.5]} 6... e6 {[%clk 0:02:57.9]} 7.
Bf4 {[%clk 0:02:51.8]} 7... a6 {[%clk 0:02:55.6]} 8. Nd2 {[%clk 0:02:50.2]} 8...
Ne7 {[%clk 0:02:54.5]} 9. Ngf3 {[%clk 0:02:48.7]} 9... Ng6 {[%clk 0:02:54.5]}
10. Bh2 {[%clk 0:02:48]} 10... Bd6 {[%clk 0:02:53.9]} 11. Bxd6 {[%clk
0:02:46.7]} 11... Qxd6 {[%clk 0:02:53.5]} 12. O-O {[%clk 0:02:46.1]} 12... O-O
{[%clk 0:02:44.7]} 13. Re1 {[%clk 0:02:45.7]} 13... b5 {[%clk 0:02:43.9]} 14.
Ne5 {[%clk 0:02:45.2]} 14... Bb7 {[%clk 0:02:44.1]} 15. a3 {[%clk 0:02:12.1]}
15... Rac8 {[%clk 0:02:32.3]} 16. Qf3 {[%clk 0:02:03.9]} 16... Rc7 {[%clk
0:02:28.1]} 17. Re3 {[%clk 0:01:57.5]} 17... Rd8 {[%clk 0:02:21.1]} 18. Rae1
{[%clk 0:01:56.7]} 18... Qb6 {[%clk 0:02:06.1]} 19. g3 {[%clk 0:01:38.6]} 19...
a5 {[%clk 0:02:05.2]} 20. h4 {[%clk 0:01:23.8]} 20... Nxe5 {[%clk 0:01:44.1]}
21. Rxe5 {[%clk 0:01:19.5]} 21... b4 {[%clk 0:01:32.8]} 22. axb4 {[%clk
0:01:18.1]} 22... axb4 {[%clk 0:01:32.1]} 23. Rg5 {[%clk 0:00:55.8]} 23... Kf8
{[%clk 0:01:31.4]} 24. h5 {[%clk 0:00:47.4]} 24... h6 {[%clk 0:01:30.7]} 25.
Rge5 {[%clk 0:00:43.7]} 25... bxc3 {[%clk 0:01:29.3]} 26. bxc3 {[%clk
0:00:44.1]} 26... Rxc3 {[%clk 0:01:28.6]} 27. Nb1 {[%clk 0:00:41.3]} 27... Rc7
{[%clk 0:01:16]} 28. Qf4 {[%clk 0:00:41.4]} 28... Rdc8 {[%clk 0:01:10]} 29. g4
{[%clk 0:00:40.5]} 29... Ne4 {[%clk 0:01:04.7]} 30. Nd2 {[%clk 0:00:24.6]} 30...
Rc1 {[%clk 0:00:51.7]} 31. Rxc1 {[%clk 0:00:23.2]} 31... Rxc1+ {[%clk
0:00:50.7]} 32. Kh2 {[%clk 0:00:23.3]} 32... Nxd2 {[%clk 0:00:46.4]} 33. Qxd2
{[%clk 0:00:20.3]} 33... Qxd4 {[%clk 0:00:42.8]} 34. Qxc1 {[%clk 0:00:18.9]}
34... Qxe5+ {[%clk 0:00:41.7]} 35. Kg1 {[%clk 0:00:17.3]} 35... Qd6 {[%clk
0:00:32.6]} 36. Qb2 {[%clk 0:00:16.9]} 36... Qe7 {[%clk 0:00:22]} 37. Qe5 {[%clk
0:00:15.9]} 37... Qd8 {[%clk 0:00:17.7]} 38. f4 {[%clk 0:00:13.4]} 38... Qb6+
{[%clk 0:00:15.2]} 39. Kf1 {[%clk 0:00:13.5]} 39... Ba6 {[%clk 0:00:13.3]} 40.
Bxa6 {[%clk 0:00:12.7]} 40... Qxa6+ {[%clk 0:00:12.9]} 41. Kf2 {[%clk 0:00:13]}
41... Qb6+ {[%clk 0:00:11.6]} 42. Kf3 {[%clk 0:00:12.7]} 42... f6 {[%clk
0:00:10.1]} 43. Qc3 {[%clk 0:00:11.5]} 43... Ke7 {[%clk 0:00:08.9]} 44. Qa3+
{[%clk 0:00:10.9]} 44... Qd6 {[%clk 0:00:07.9]} 45. Qa7+ {[%clk 0:00:10.8]}
45... Qd7 {[%clk 0:00:08]} 46. Qc5+ {[%clk 0:00:10.7]} 46... Kf7 {[%clk
0:00:07.9]} 47. Qd4 {[%clk 0:00:10.1]} 47... Qc7 {[%clk 0:00:07]} 48. f5 {[%clk
0:00:10.3]} 48... Qd7 {[%clk 0:00:05]} 49. fxe6+ {[%clk 0:00:10.4]} 49... Qxe6
{[%clk 0:00:05.2]} 50. Qa7+ {[%clk 0:00:10]} 50... Qe7 {[%clk 0:00:05]} 51. Qd4
{[%clk 0:00:09.8]} 51... Qd7 {[%clk 0:00:05]} 52. Kf4 {[%clk 0:00:09]} 52...
Qd6+ {[%clk 0:00:05]} 53. Kf3 {[%clk 0:00:09.3]} 53... Qe5 {[%clk 0:00:05.2]}
54. Qa7+ {[%clk 0:00:09.1]} 54... Kg8 {[%clk 0:00:05.2]} 55. Qa8+ {[%clk
0:00:09.1]} 55... Kh7 {[%clk 0:00:05.1]} 56. Qa3 {[%clk 0:00:07.2]} 56... Qe4+
{[%clk 0:00:04.1]} 57. Kg3 {[%clk 0:00:07]} 57... d4 {[%clk 0:00:04.4]} 58. Qa7
{[%clk 0:00:04.2]} 58... d3 {[%clk 0:00:03.6]} 59. Qf2 {[%clk 0:00:03.8]} 59...
Qd5 {[%clk 0:00:01.9]} 60. Qd2 {[%clk 0:00:03.2]} 60... Qd4 {[%clk 0:00:02.1]}
61. Kf3 {[%clk 0:00:03.3]} 61... Kg8 {[%clk 0:00:01.5]} 62. Qe3 {[%clk
0:00:03.5]} 62... Qd5+ {[%clk 0:00:01.2]} 63. Kf2 {[%clk 0:00:03]} 1-0